bitfinex-derivatives/quotes_BNBF0:USTF0_20250116
["timestamp","ask_amount","ask_price","bid_price","bid_amount"]
[1737049914327,1.04175987,714.91,714.14,0.46857452]
[1737049914530,1.04175987,714.91,714.15,0.46857452]
[1737049914730,1.04175987,714.91,714.16,0.46857452]
[1737049914926,1.04175987,714.91,714.17,0.46857452]
[1737049915132,1.04175987,714.92,714.18,0.46857452]
[1737049915433,1.04175987,714.92,714.19,0.46857452]
[1737049915633,1.04175987,714.92,714.2,0.46857452]
[1737049915932,1.04175987,714.92,714.21,0.46857452]
[1737049916133,1.04175987,714.92,713.63,0.28025727]
[1737049916134,1.04175987,714.9,714.22,0.46857452]
[1737049916336,1.04175987,714.9,714.23,0.46857452]
[1737049916534,1.04175987,714.9,714.24,0.46857452]
[1737049916835,1.04175987,714.9,714.25,0.46857452]
[1737049917040,1.04175987,714.9,714.26,0.46857452]
[1737049917232,1.04175987,714.9,714.27,0.46857452]
[1737049917436,1.04175987,714.9,714.28,0.46857452]
[1737049917637,1.04175987,714.9,714.29,0.46857452]
[1737049917939,1.04175987,714.9,714.3,0.46857452]
[1737049918141,1.04175987,714.89,714.31,0.46857452]
[1737049918338,1.04175987,714.89,714.32,0.46857452]
[1737049918538,1.04175987,714.89,714.33,0.46857452]
[1737049918739,1.04175987,714.89,714.34,0.46857452]
[1737049918935,1.04175987,714.89,714.35,0.46857452]
[1737049919134,1.04175987,714.89,714.36,0.46857452]
[1737049919340,1.04175987,714.92,714.37,0.46857452]
[1737049919634,1.04175987,714.92,714.38,0.46857452]
[1737049919840,1.04175987,714.92,714.39,0.46857452]
[1737049920041,1.04175987,714.92,713.65,1.03252044]
[1737049920340,0.27974375,714.94,713.63,0.28025727]
[1737049920341,1.04175987,714.93,713.67,1.03252044]
[1737049920541,1.04175987,714.93,713.68,0.72601655]
[1737049920737,1.04175987,714.93,713.69,0.46872879]
[1737049920939,1.04175987,714.93,713.7,0.46872879]
[1737049921139,1.04175987,714.93,713.71,0.46872879]
[1737049921336,1.04175987,714.93,713.72,0.46872879]
[1737049921642,0.27974375,714.94,713.73,0.46872879]
[1737049921837,0.27974375,714.94,713.74,0.46872879]
[1737049922040,0.27974375,714.94,713.75,0.46872879]
[1737049922241,0.27974375,714.94,713.76,0.46872879]
[1737049922442,0.27974375,714.94,713.77,0.46872879]
[1737049922638,1.04175987,714.92,713.78,0.46872879]
[1737049922844,1.04175987,714.92,713.79,0.46872879]
[1737049923146,1.04175987,714.92,713.8,0.46872879]
[1737049923345,1.04175987,714.92,713.81,0.46872879]
[1737049923643,1.04175987,714.91,713.82,0.46872879]
[1737049923844,1.04175987,714.91,713.67,1.03252044]
[1737049923845,1.04175987,714.91,713.83,0.46872879]
[1737049924040,1.04175987,714.91,713.84,0.46872879]
[1737049924237,1.04175987,714.91,713.85,0.46872879]
[1737049924546,0.27974375,714.94,713.86,0.46872879]
[1737049924547,1.04175987,714.87,713.86,0.46872879]
[1737049924737,1.04175987,714.87,713.87,0.46872879]
[1737049924939,1.04175987,714.87,713.88,0.46872879]
[1737049925141,1.04175987,714.87,713.89,0.46872879]
[1737049925339,1.04175987,714.87,713.9,0.46872879]
[1737049925540,0.27974375,714.94,713.91,0.46872879]
[1737049925541,1.04175987,714.79,713.91,0.46872879]
[1737049925745,1.04175987,714.79,713.92,0.46872879]
[1737049925944,1.04175987,714.79,713.93,0.46872879]
[1737049926145,1.04175987,714.79,713.94,0.46872879]
[1737049926343,1.04175987,714.79,713.95,0.46872879]
[1737049926547,1.04175987,714.78,713.96,0.46872879]
[1737049926745,1.04175987,714.78,713.97,0.46872879]
[1737049927051,1.04175987,714.78,713.98,0.46872879]
[1737049927347,1.04175987,714.78,713.99,0.46872879]
[1737049927547,1.04175987,714.86,714.0,0.46872879]
[1737049927748,1.04175987,714.86,714.01,0.46872879]
[1737049928047,1.04175987,714.86,714.02,0.46872879]
[1737049928247,1.04175987,714.86,714.03,0.46872879]
[1737049928445,1.04175987,714.86,714.04,0.46872879]
[1737049928646,1.04175987,714.86,714.05,0.46872879]
[1737049928849,1.04175987,714.86,714.06,0.46872879]
[1737049929042,1.04175987,714.86,714.07,0.46872879]
[1737049929246,1.04175987,714.86,714.08,0.46872879]
[1737049929444,1.04175987,714.86,714.09,0.46872879]
[1737049929647,1.04175987,714.86,714.1,0.46872879]
[1737049929849,1.04175987,714.81,714.11,0.46872879]
[1737049930152,1.04175987,714.81,714.12,0.46872879]
[1737049930348,1.04175987,714.81,714.13,0.46872879]
[1737049930549,1.04175987,714.81,714.14,0.46872879]
[1737049930751,1.04175987,714.81,714.15,0.46872879]
[1737049930951,1.04175987,714.81,714.16,0.46872879]
[1737049931147,1.04175987,714.81,714.17,0.46872879]
[1737049931353,1.04175987,714.79,714.18,0.46872879]
[1737049931550,1.04175987,714.79,714.19,0.46872879]
[1737049931752,1.04175987,714.79,714.2,0.46872879]
[1737049931948,1.04175987,714.79,714.21,0.46872879]
[1737049932152,1.04175987,714.79,714.22,0.46872879]
[1737049932356,1.04175987,714.79,714.23,0.46872879]
[1737049932559,1.04175987,714.78,714.24,0.46872879]
[1737049932752,1.04175987,714.78,714.25,0.46872879]
[1737049932953,1.04175987,714.78,714.26,0.46872879]
[1737049933151,1.04175987,714.78,714.27,0.46872879]
[1737049933355,1.04175987,714.78,713.63,1.31277771]
[1737049933356,1.04175987,714.78,714.28,0.46872879]
[1737049933552,1.04175987,714.78,714.29,0.46872879]
[1737049933757,1.04175987,714.78,714.3,0.46872879]
[1737049933948,1.04175987,714.78,714.31,0.46872879]
[1737049934156,1.04175987,714.8,714.32,0.46872879]
[1737049934354,1.04175987,714.8,713.67,1.03252044]
[1737049934655,1.04175987,714.8,713.68,0.72638525]
[1737049934856,1.04175987,714.8,713.69,0.72638525]
[1737049935053,1.04175987,714.71,713.75,1.03252044]
[1737049935355,1.04175987,714.71,713.76,0.72638525]
[1737049935556,1.04175987,714.71,713.77,0.72638525]
[1737049935755,1.04175987,714.71,713.78,0.72638525]
[1737049935959,1.04175987,714.71,713.79,0.46907268]
[1737049936152,1.04175987,714.71,713.8,0.72635571]
[1737049936349,1.04175987,714.71,713.75,1.03252044]
[1737049936350,1.04175987,714.71,713.81,0.72635571]
[1737049936556,1.04175987,714.83,713.82,0.72635571]
[1737049936755,1.04175987,714.83,713.83,0.72635571]
[1737049936955,1.04175987,714.83,713.84,0.72635571]
[1737049937259,1.04175987,714.83,713.8,1.03252044]
[1737049937260,1.04175987,714.83,713.85,0.72635571]
[1737049937456,1.04175987,714.86,713.88,1.03252044]
[1737049937660,1.04175987,714.86,713.89,0.72635571]
[1737049937860,1.04175987,714.86,713.9,0.72635571]
[1737049938061,1.04175987,714.86,713.91,0.72588737]
[1737049938361,1.04175987,714.88,713.92,1.75840781]
[1737049938661,1.04175987,714.88,713.93,0.46860434]
[1737049938853,1.04175987,714.88,713.94,0.72585404]
[1737049939057,1.04175987,714.88,713.95,0.72585404]
[1737049939257,1.04175987,714.89,713.96,0.46860434]
[1737049939459,1.04175987,714.89,713.97,0.46860434]
[1737049939657,1.04175987,714.89,713.98,0.46860434]
[1737049939860,1.04175987,714.89,713.99,0.46860434]
[1737049940056,0.27974375,714.94,713.63,1.31277771]
[1737049940057,1.04175987,714.88,714.0,0.46860434]
[1737049940260,1.04175987,714.88,714.01,0.46860434]
[1737049940462,1.04175987,714.88,714.02,0.46860434]
[1737049940663,1.04175987,714.88,714.03,0.46860434]
[1737049940863,1.04175987,714.86,714.04,0.46860434]
[1737049941062,1.04175987,714.86,714.05,0.46860434]
[1737049941263,1.04175987,714.86,714.06,0.46860434]
[1737049941572,1.04175987,714.86,714.07,0.46860434]
[1737049941765,1.04175987,714.88,714.08,0.46860434]
[1737049942067,1.04175987,714.88,714.09,0.46860434]
[1737049942268,1.04175987,714.88,714.1,0.46860434]
[1737049942465,1.04175987,714.88,714.11,0.46860434]
[1737049942661,1.04175987,714.88,714.12,0.46860434]
[1737049942966,1.04175987,714.92,714.13,0.46860434]
[1737049943168,1.04175987,714.92,714.14,0.46860434]
[1737049943365,1.04175987,714.92,714.15,0.46860434]
[1737049943666,1.04175987,714.92,714.16,0.46860434]
[1737049943864,1.04175987,714.92,714.17,0.46860434]
[1737049944066,0.27974375,714.94,714.18,0.46860434]
[1737049944263,0.27974375,714.94,714.19,0.46860434]
[1737049944466,0.27974375,714.94,714.2,0.46860434]
[1737049944662,0.27974375,714.94,714.21,0.46860434]
[1737049944869,0.27974375,714.94,714.22,0.46860434]
[1737049945071,0.27974375,714.94,714.23,0.46860434]
[1737049945269,1.04175987,715.15,714.24,0.46860434]
[1737049945465,1.04175987,715.15,714.25,0.46860434]
[1737049945670,1.04175987,715.15,714.26,0.46860434]
[1737049945870,1.04175987,715.15,714.27,0.46860434]
[1737049946063,1.04175987,715.15,714.28,0.46860434]
[1737049946267,1.04175987,715.15,714.29,0.46860434]
[1737049946466,1.04175987,715.42,714.3,0.46860434]
[1737049946670,0.27955997,715.41,714.31,0.46780927]
[1737049946873,0.27955997,715.41,714.32,0.46780927]
[1737049947069,0.27955997,715.41,714.33,0.46780927]
[1737049947275,0.27955997,715.41,714.34,0.46780927]
[1737049947474,0.27955997,715.41,713.79,1.03252044]
[1737049947475,0.27955997,715.41,714.35,0.46780927]
[1737049947673,0.27955997,715.41,714.36,0.46780927]
[1737049947872,0.27955997,715.41,714.37,0.46780927]
[1737049948074,0.27955997,715.41,714.38,0.46780927]
[1737049948272,0.27955997,715.41,714.39,0.46780927]
[1737049948468,0.27955997,715.41,714.4,0.46780927]
[1737049948675,0.27955997,715.41,713.63,0.28025727]
[1737049948676,1.04175987,715.35,714.41,0.46780927]
[1737049948975,1.04175987,715.35,714.42,0.46780927]
[1737049949171,1.04175987,715.35,714.43,0.46780927]
[1737049949372,1.04175987,715.35,714.44,0.46780927]
[1737049949568,0.27958732,715.34,714.45,0.46780927]
[1737049949768,0.27958732,715.34,714.46,0.46780927]
[1737049949973,1.04175987,715.24,714.47,0.46782047]
[1737049950173,1.04175987,715.24,713.72,1.03252044]
[1737049950474,0.27963032,715.23,713.73,0.46785965]
[1737049950675,0.27963032,715.23,713.74,0.74807373]
[1737049950977,0.27963032,715.23,713.75,0.7480698]
[1737049951273,0.27963032,715.23,713.76,0.46785965]
[1737049951474,0.27963032,715.23,713.77,0.72512813]
[1737049951669,0.27963032,715.23,713.78,0.72512813]
[1737049951873,0.27963032,715.23,713.79,0.72512813]
[1737049952073,0.27963032,715.23,713.8,0.72512813]
[1737049952276,1.04175987,715.17,713.81,0.72512813]
[1737049952475,1.04175987,715.17,713.82,0.46785965]
[1737049952676,0.27965769,715.16,713.83,0.72512081]
[1737049952869,0.27965769,715.16,713.84,0.72512081]
[1737049953068,0.27965769,715.16,713.85,0.72512081]
[1737049953275,0.27965769,715.16,713.86,0.72512081]
[1737049953571,1.04175987,715.0,713.87,0.72512081]
[1737049953774,1.04175987,715.0,713.88,0.72512081]
[1737049953973,1.04175987,715.0,713.89,0.72512081]
[1737049954177,1.04175987,715.0,713.9,0.72512081]
[1737049954371,1.04175987,715.0,713.91,0.72512081]
[1737049954571,1.04175987,715.0,713.92,0.72512081]
[1737049954775,1.04175987,715.0,713.75,0.28021015]
[1737049954776,1.04175987,715.05,713.93,0.46785965]
[1737049954975,1.04175987,715.05,713.94,0.46785965]
[1737049955177,1.04175987,715.05,713.95,0.46785965]
[1737049955373,1.04175987,715.05,713.96,0.46785965]
[1737049955573,1.04175987,715.05,713.97,0.46785965]
[1737049955779,1.04175987,715.05,713.98,0.46785965]
[1737049955978,1.04175987,715.05,713.99,0.46785965]
[1737049956179,1.04175987,715.05,714.0,0.46785965]
[1737049956375,1.04175987,715.05,714.01,0.46785965]
[1737049956579,1.04175987,715.07,714.02,0.46785965]
[1737049956879,1.04175987,715.07,714.03,0.46785965]
[1737049957075,1.04175987,715.07,714.04,0.46785965]
[1737049957276,1.04175987,715.07,714.05,0.46785965]
[1737049957480,1.04175987,715.07,714.06,0.46785965]
[1737049957779,1.04175987,715.07,714.07,0.46785965]
[1737049957981,1.04175987,715.07,714.08,0.46785965]
[1737049958180,1.04175987,715.07,714.09,0.46785965]
[1737049958475,1.04175987,715.07,714.1,0.46785965]
[1737049958675,1.04175987,715.07,714.11,0.46785965]
[1737049958875,1.04175987,715.07,714.12,0.46785965]
[1737049959074,1.04175987,715.15,714.13,0.46785965]
[1737049959276,1.04175987,715.15,714.14,0.46785965]
[1737049959477,1.04175987,715.15,714.15,0.46785965]
[1737049959679,1.04175987,715.15,714.16,0.46785965]
[1737049959878,1.04175987,715.15,714.17,0.46785965]
[1737049960079,1.32141756,715.16,714.18,0.46785965]
[1737049960383,1.32141756,715.16,714.19,0.46785965]
[1737049960575,1.32141756,715.16,714.2,0.46785965]
[1737049960777,1.32141756,715.16,713.75,0.28021015]
[1737049960778,1.32141756,715.16,714.21,0.46785965]
[1737049960975,1.32141756,715.16,714.22,0.46785965]
[1737049961175,1.04175987,715.14,714.23,0.46785965]
[1737049961379,1.04175987,715.14,714.24,0.46785965]
[1737049961573,1.04175987,715.14,714.25,0.46785965]
[1737049961780,1.04175987,715.14,714.26,0.46785965]
[1737049961980,1.04175987,715.14,714.27,0.46785965]
[1737049962179,0.27965769,715.16,714.28,0.46785965]
[1737049962180,1.04175987,715.11,714.28,0.46785965]
[1737049962381,1.04175987,715.11,714.29,0.46785965]
[1737049962679,1.04175987,715.11,714.3,0.46785965]
[1737049962981,1.04175987,715.11,714.31,0.46785965]
[1737049963182,0.27965769,715.16,714.32,0.46785965]
[1737049963183,1.04175987,715.08,714.32,0.46785965]
[1737049963377,1.04175987,715.08,714.33,0.46785965]
[1737049963578,1.04175987,715.08,713.75,0.28021015]
[1737049963579,1.04175987,715.08,714.34,0.46785965]
[1737049963775,1.04175987,715.08,714.35,0.46785965]
[1737049964077,1.04175987,715.06,714.36,0.46785965]
[1737049964382,1.04175987,715.06,714.37,0.46785965]
[1737049964581,1.04175987,715.06,714.38,0.46785965]
[1737049964782,1.04175987,715.06,714.39,0.46785965]
[1737049964982,1.04175987,715.06,714.4,0.46785965]
[1737049965176,1.04175987,715.06,713.75,0.28021015]
[1737049965377,1.04175987,714.95,713.76,0.72536077]
[1737049965577,1.04175987,714.95,713.77,0.72536077]
[1737049965776,1.04175987,714.95,713.78,0.72536077]
[1737049965980,1.04175987,714.95,713.79,0.72536077]
[1737049966180,1.04175987,714.95,713.8,0.72536077]
[1737049966480,1.04175987,714.95,713.81,0.72536077]
[1737049966681,1.04175987,714.92,713.82,0.72536077]
[1737049966877,1.04175987,714.92,713.83,0.72536077]
[1737049967081,1.04175987,714.92,713.84,0.46808646]
[1737049967281,1.04175987,714.92,713.85,0.46808646]
[1737049967478,1.04175987,714.92,713.86,0.46808646]
[1737049967684,1.04175987,714.92,713.87,0.46808646]
[1737049967986,1.04175987,714.96,713.88,0.46808646]
[1737049968284,1.04175987,714.96,713.89,0.46808646]
[1737049968483,1.04175987,714.96,713.9,0.46808646]
[1737049968681,1.04175987,714.96,713.75,0.28021015]
[1737049968682,1.04175987,714.96,713.91,0.46808646]
[1737049968883,1.04175987,714.96,713.92,0.46808646]
[1737049969082,1.04175987,714.94,713.93,0.46808646]
[1737049969280,1.04175987,714.94,713.94,0.46808646]
[1737049969482,1.04175987,714.94,713.95,0.46808646]
[1737049969678,1.04175987,714.94,713.96,0.46808646]
[1737049969878,1.04175987,714.94,713.97,0.46808646]
[1737049970084,1.04175987,714.92,713.98,0.46808646]
[1737049970286,1.04175987,714.92,713.75,1.31273059]
[1737049970287,1.04175987,714.92,713.99,0.46808646]
[1737049970487,1.04175987,714.92,714.0,0.46808646]
[1737049970681,1.04175987,714.92,714.01,0.46808646]
[1737049970884,1.32141756,715.16,714.02,0.46808646]
[1737049971083,0.2796616,715.15,714.03,0.46808646]
[1737049971284,0.2796616,715.15,714.04,0.46808646]
[1737049971479,0.2796616,715.15,714.05,0.46808646]
[1737049971686,0.2796616,715.15,714.06,0.46808646]
[1737049971887,0.2796616,715.15,714.07,0.46808646]
[1737049972087,0.2796616,715.15,714.08,0.46781696]
[1737049972288,0.2796616,715.15,714.09,0.46781696]
[1737049972489,0.2796616,715.15,714.1,0.46781696]
[1737049972685,0.2796616,715.15,714.11,0.46781696]
[1737049972886,0.2796616,715.15,714.12,0.46781696]
[1737049973087,0.2796616,715.15,714.13,0.46781696]
[1737049973384,0.2796616,715.15,714.14,0.46781696]
[1737049973685,0.2796616,715.15,714.15,0.46781696]
[1737049973887,0.2796616,715.15,714.16,0.46781696]
[1737049974085,0.2796616,715.15,714.17,0.46781696]
[1737049974286,0.2796616,715.15,714.18,0.46781696]
[1737049974484,0.2796616,715.15,714.19,0.46781696]
[1737049974682,0.2796616,715.15,713.75,1.31273059]
[1737049974683,0.2796616,715.15,714.2,0.46781696]
[1737049974887,0.2796616,715.15,714.21,0.46781696]
[1737049975088,0.2796616,715.15,714.22,0.46781696]
[1737049975289,0.2796616,715.15,714.23,0.46781696]
[1737049975490,0.2796616,715.15,714.24,0.46781696]
[1737049975685,0.2796616,715.15,714.25,0.46781696]
[1737049975889,0.2796616,715.15,714.26,0.46781696]
[1737049976188,0.2796616,715.15,714.27,0.46781696]
[1737049976394,1.04175987,715.12,714.28,0.46781696]
[1737049976689,1.04175987,715.12,714.29,0.46781696]
[1737049976988,1.04175987,715.12,714.3,0.46781696]
[1737049977185,1.04175987,715.12,714.31,0.46781696]
[1737049977387,1.04175987,715.06,714.32,0.46781696]
[1737049977685,1.04175987,715.06,714.33,0.46781696]
[1737049977990,1.04175987,715.06,714.34,0.46781696]
[1737049978189,0.2796616,715.15,713.93,1.03252044]
[1737049978190,1.04175987,715.03,714.35,0.46781696]
[1737049978384,1.04175987,715.03,714.36,0.46781696]
[1737049978588,1.04175987,715.03,714.37,0.46781696]
[1737049978787,1.04175987,715.03,714.38,0.46781696]
[1737049979088,1.04175987,715.03,714.39,0.46781696]
[1737049979287,1.04175987,715.03,714.4,0.46781696]
[1737049979489,1.04175987,715.03,713.93,1.03252044]
[1737049979683,1.04175987,715.03,713.94,0.4676526]
[1737049979888,1.04175987,715.03,713.95,0.4676526]
[1737049980089,1.04175987,715.03,713.96,0.4676526]
[1737049980290,1.32142147,715.15,713.97,0.4676526]
[1737049980591,1.32142147,715.15,713.98,0.4676526]
[1737049980785,1.32142147,715.15,713.99,0.4676526]
[1737049980990,1.32142147,715.15,714.0,0.4676526]
[1737049981290,1.32142147,715.15,714.01,0.4676526]
[1737049981491,1.32142147,715.15,714.02,0.4676526]
[1737049981687,1.04175987,715.13,714.03,0.4676526]
[1737049981991,1.04175987,715.13,714.04,0.4676526]
[1737049982290,1.04175987,715.13,714.05,0.4676526]
[1737049982490,1.04175987,715.13,714.06,0.4676526]
[1737049982692,0.2796616,715.15,714.07,0.4676526]
[1737049982985,0.2796616,715.15,713.94,1.03252044]
[1737049982986,0.2796616,715.15,714.08,0.4676526]
[1737049983187,0.2796616,715.15,714.09,0.4676526]
[1737049983389,0.2796616,715.15,714.1,0.4676526]
[1737049983588,0.2796616,715.15,714.11,0.4676526]
[1737049983885,0.2796616,715.15,714.12,0.4676526]
[1737049984085,0.2796616,715.15,714.13,0.4676526]
[1737049984285,0.2796616,715.15,714.14,0.4676526]
[1737049984589,0.2796616,715.15,713.75,0.28021015]
[1737049984590,0.2796616,715.15,714.15,0.4676526]
[1737049984792,0.2796616,715.15,714.16,0.4676526]
[1737049984986,0.2796616,715.15,714.17,0.4676526]
[1737049985288,0.2796616,715.15,714.18,0.4676526]
[1737049985490,0.2796616,715.15,714.19,0.4676526]
[1737049985691,0.2796616,715.15,714.2,0.4676526]
[1737049985892,0.2796616,715.15,714.21,0.4676526]
[1737049986192,0.2796616,715.15,714.22,0.4676526]
[1737049986392,0.2796616,715.15,714.23,0.4676526]
[1737049986693,0.2796616,715.15,714.24,0.4676526]
[1737049986892,0.2796616,715.15,714.25,0.4676526]
[1737049987095,0.2796616,715.15,714.26,0.4676526]
[1737049987394,0.2796616,715.15,714.27,0.4676526]
[1737049987687,0.2796616,715.15,713.75,0.28021015]
[1737049987688,0.2796616,715.15,714.28,0.4676526]
[1737049987994,0.2796616,715.15,714.29,0.4676526]
[1737049988193,0.2796616,715.15,714.3,0.4676526]
[1737049988386,0.2796616,715.15,714.31,0.4676526]
[1737049988590,0.2796616,715.15,714.32,0.4676526]
[1737049988786,0.2796616,715.15,714.33,0.4676526]
[1737049988992,0.2796616,715.15,714.34,0.4676526]
[1737049989192,0.2796616,715.15,714.35,0.4676526]
[1737049989394,0.2796616,715.15,714.36,0.4676526]
[1737049989696,0.2796616,715.15,714.37,0.4676526]
[1737049989895,0.2796616,715.15,714.38,0.4676526]
[1737049990094,0.2796616,715.15,714.39,0.4676526]
[1737049990297,0.2796616,715.15,714.4,0.4676526]
[1737049990491,0.2796616,715.15,714.41,0.4676526]
[1737049990692,0.2796616,715.15,714.42,0.4676526]
[1737049990892,0.2796616,715.15,714.43,0.4676526]
[1737049991096,0.2796616,715.15,713.75,0.28021015]
[1737049991097,0.2796616,715.15,714.44,0.4676526]
[1737049991294,0.2796616,715.15,714.45,0.4676526]
[1737049991598,0.2796616,715.15,714.46,0.4676526]
[1737049991800,0.2796616,715.15,714.47,0.4676526]
[1737049991999,0.2796616,715.15,713.86,1.03252044]
[1737049992000,0.2796616,715.15,714.48,0.4676526]
[1737049992195,0.2796616,715.15,714.49,0.46693188]
[1737049992396,0.2796616,715.15,714.5,0.46693188]
[1737049992597,0.2796616,715.15,714.51,0.46693188]
[1737049992799,0.2796616,715.15,714.52,0.46693188]
[1737049993000,0.2796616,715.15,713.85,1.03252044]
[1737049993001,0.2796616,715.15,714.53,0.46693188]
[1737049993199,0.2796616,715.15,714.54,0.46693188]
[1737049993397,0.2796616,715.15,714.55,0.46693188]
[1737049993598,0.2796616,715.15,714.56,0.46693188]
[1737049993794,0.2796616,715.15,714.57,0.46693188]
[1737049993995,0.2796616,715.15,714.58,0.46693188]
[1737049994302,0.2796616,715.15,714.59,0.46693188]
[1737049994601,0.2796616,715.15,714.6,0.46693188]
[1737049994803,0.2796616,715.15,714.61,0.46693188]
[1737049995102,0.2796616,715.15,714.62,0.46693188]
[1737049995301,0.2796616,715.15,714.63,0.46693188]
[1737049995498,0.2796616,715.15,714.64,0.46693188]
[1737049995804,0.2796616,715.15,714.65,0.46693188]
[1737049996002,0.2796616,715.15,713.86,1.03252044]
[1737049996202,0.2796616,715.15,713.87,1.00475711]
[1737049996404,0.2796616,715.15,713.88,1.00475319]
[1737049996601,0.2796616,715.15,713.94,1.03252044]
[1737049996801,0.2796616,715.15,713.95,0.72459406]
[1737049997001,0.2796616,715.15,713.96,0.72459406]
[1737049997202,0.2796616,715.15,713.97,0.72459406]
[1737049997405,0.2796616,715.15,713.98,0.72459406]
[1737049997601,0.2796616,715.15,713.99,0.72459406]
[1737049997902,0.2796616,715.15,714.0,0.72459406]
[1737049998104,0.2796616,715.15,714.01,0.72459406]
[1737049998403,0.2796616,715.15,713.88,0.28015913]
[1737049998404,0.2796616,715.15,714.02,0.72459406]
[1737049998701,0.2796616,715.15,714.03,0.72458842]
[1737049998903,0.2796616,715.15,714.04,0.72458842]
[1737049999096,0.2796616,715.15,714.05,0.72458842]
[1737049999302,0.2796616,715.15,714.06,0.72458842]
[1737049999503,0.2796616,715.15,714.07,0.72458842]
[1737049999807,0.2796616,715.15,714.08,0.72458842]
[1737050000109,0.2796616,715.15,714.09,0.72458842]
[1737050000404,0.2796616,715.15,714.1,0.72458842]
[1737050000606,0.2796616,715.15,713.95,1.03252044]
[1737050000607,0.2796616,715.15,714.11,0.72458842]
[1737050000802,0.2796616,715.15,714.12,0.72458842]
[1737050001003,0.2796616,715.15,714.13,0.72458842]
[1737050001200,0.2796616,715.15,714.14,0.72458842]
[1737050001400,0.2796616,715.15,714.15,0.72458906]
[1737050001601,0.2796616,715.15,714.16,0.46741411]
[1737050001806,0.2796616,715.15,714.17,0.46732765]
[1737050002002,0.2796616,715.15,714.18,0.46732765]
[1737050002201,0.2796616,715.15,714.19,0.46732765]
[1737050002403,0.2796616,715.15,714.2,0.46732765]
[1737050002601,0.2796616,715.15,714.21,0.46732765]
[1737050002804,0.2796616,715.15,714.22,0.46732765]
[1737050003104,0.2796616,715.15,714.23,0.46732765]
[1737050003303,0.2796616,715.15,714.24,0.46732765]
[1737050003509,0.2796616,715.15,714.25,0.46732765]
[1737050003703,0.2796616,715.15,714.26,0.46732765]
[1737050003907,0.2796616,715.15,714.27,0.46732765]
[1737050004108,0.2796616,715.15,714.28,0.46732765]
[1737050004305,0.2796616,715.15,714.29,0.46732765]
[1737050004610,0.2796616,715.15,714.01,1.03252044]
[1737050004611,0.2796616,715.15,714.3,0.46732765]
[1737050004810,0.2796616,715.15,714.31,0.46732765]
[1737050005105,0.2796616,715.15,714.08,1.03252044]
[1737050005106,0.2796616,715.15,714.32,0.46732765]
[1737050005309,0.2796616,715.15,714.33,0.46732765]
[1737050005511,0.2796616,715.15,714.34,0.46691509]
[1737050005810,0.2796616,715.15,713.88,1.31267957]
[1737050005811,0.2796616,715.15,714.35,0.46691509]
[1737050006009,0.2796616,715.15,714.36,0.46691509]
[1737050006210,0.2796616,715.15,714.37,0.46691509]
[1737050006411,0.2796616,715.15,714.38,0.46691509]
[1737050006611,0.2796616,715.15,714.39,0.46691509]
[1737050006813,0.2796616,715.15,714.4,0.4667189]
[1737050007013,0.2796616,715.15,714.41,0.4667189]
[1737050007205,0.2796616,715.15,714.42,0.4667189]
[1737050007410,0.2796616,715.15,714.43,0.46662471]
[1737050007606,0.2796616,715.15,714.44,0.46662471]
[1737050007807,0.2796616,715.15,714.45,0.46662471]
[1737050008011,0.2796616,715.15,714.46,0.46662471]
[1737050008213,0.2796616,715.15,714.47,0.46662471]
[1737050008413,0.2796616,715.15,714.22,1.03252044]
[1737050008414,0.2796616,715.15,714.48,0.46662471]
[1737050008608,0.2796616,715.15,714.49,0.46662471]
[1737050008816,0.2796616,715.15,714.5,0.46662471]
[1737050009112,0.2796616,715.15,714.51,0.46662471]
[1737050009315,0.2796616,715.15,714.52,0.46662471]
[1737050009516,0.2796616,715.15,714.53,0.46662471]
[1737050009814,0.2796616,715.15,714.54,0.46662471]
[1737050010017,0.2796616,715.15,714.55,0.46662471]
[1737050010217,0.2796616,715.15,714.56,0.46662471]
[1737050010417,0.2796616,715.15,714.57,0.46662471]
[1737050010618,0.2796616,715.15,714.58,0.46662471]
[1737050010816,0.2796616,715.15,714.59,0.46662471]
[1737050011013,0.2796616,715.15,714.6,0.46662471]
[1737050011318,0.2796616,715.15,713.88,0.28015913]
[1737050011319,0.2796616,715.15,714.61,0.46646892]
[1737050011513,0.2796616,715.15,714.62,0.46646892]
[1737050011714,0.2796616,715.15,714.63,0.46646892]
[1737050011919,0.2796616,715.15,714.64,0.46646892]
[1737050012116,0.2796616,715.15,714.65,0.46646892]
[1737050012318,0.2796616,715.15,714.66,0.46646892]
[1737050012523,0.2796616,715.15,714.67,0.46646892]
[1737050012721,0.2796616,715.15,714.68,0.46646892]
[1737050012921,0.2796616,715.15,714.69,0.46646892]
[1737050013121,0.2796616,715.15,714.06,1.03252044]
[1737050013322,0.2796616,715.15,714.07,0.72371991]
[1737050013523,0.2796616,715.15,714.08,0.72371991]
[1737050013723,0.2796616,715.15,714.09,0.72371991]
[1737050013919,0.2796616,715.15,714.1,0.72371991]
[1737050014224,0.2796616,715.15,714.11,0.72371991]
[1737050014421,0.2796616,715.15,714.12,0.72371991]
[1737050014623,0.2796616,715.15,714.05,1.03252044]
[1737050014624,0.2796616,715.15,714.13,0.46657034]
[1737050014821,0.2796616,715.15,714.14,0.46657034]
[1737050015125,0.2796616,715.15,714.15,0.46657034]
[1737050015324,0.2796616,715.15,714.16,0.46657034]
[1737050015525,0.2796616,715.15,714.17,0.46657034]